bitfinex/quotes_SOLUSD_20250823
["timestamp","ask_amount","ask_price","bid_price","bid_amount"]
[1755932101711,68.25984763,206.71,206.7,3.36337953]
[1755932102012,68.54417077,206.71,206.7,0.03]
[1755932102517,67.96417077,206.71,206.7,0.03]
[1755932102888,67.96417077,206.71,206.7,3.36336898]
[1755932103094,58.67264709,206.71,206.7,3.36336898]
[1755932103385,68.54417077,206.71,206.7,0.03]
[1755932104010,29.98417077,206.71,206.7,0.03]
[1755932104186,68.54417077,206.71,206.7,0.03]
[1755932105023,67.96417077,206.71,206.7,0.03]
[1755932108013,68.54417077,206.71,206.7,0.03]
[1755932111124,70.48107577,206.71,206.7,0.03]
[1755932111821,69.90107577,206.71,206.7,0.03]
[1755932112602,67.96417077,206.71,206.7,0.03]
[1755932119127,68.02417077,206.71,206.7,0.03]
[1755932119538,68.00417077,206.71,206.7,0.03]
[1755932122743,58.13264709,206.71,206.7,0.03]
[1755932122946,68.00417077,206.71,206.7,0.03]
[1755932124538,65.02841591,206.71,206.7,0.03]
[1755932124840,64.44841591,206.71,206.7,0.03]
[1755932125940,65.02841591,206.71,206.7,0.03]
[1755932126148,66.96522791,206.71,206.7,0.03]
[1755932128126,66.38522791,206.71,206.7,0.03]
[1755932129742,66.38522791,206.71,206.7,3.33855869]
[1755932130818,66.38522791,206.71,206.7,0.03]
[1755932131143,60.06945909,206.71,206.7,3.33971116]
[1755932131324,60.06945909,206.71,206.7,3.33833227]
[1755932131529,66.38522791,206.71,206.7,3.33957097]
[1755932133051,66.38522791,206.71,206.7,4.04957097]
[1755932133231,64.44841591,206.71,206.7,4.04957097]
[1755932134132,64.44841591,206.71,206.7,3.33957097]
[1755932137655,64.44841591,206.71,206.7,3.34355605]
[1755932138360,64.44841591,206.71,206.7,3.34377819]
[1755932141744,64.44841591,206.71,206.7,4.05377819]
[1755932143367,64.44841591,206.71,206.7,3.34377819]
[1755932143769,64.44841591,206.71,206.7,4.05187125]
[1755932144665,64.44841591,206.71,206.7,3.34187125]
[1755932144963,65.02841591,206.71,206.7,3.34187125]
[1755932145174,68.37028691,206.71,206.7,3.34187125]
[1755932145950,62.05451809,206.71,206.7,0.03]
[1755932146852,19.30832395,206.71,206.7,4.06674931]
[1755932147047,64.42841591,206.71,206.7,4.06674931]
[1755932147247,64.14409277,206.71,206.7,3.35674931]
[1755932147554,64.42841591,206.71,206.7,3.35651721]
[1755932149563,64.42841591,206.71,206.7,4.06651721]
[1755932149949,64.42841591,206.71,206.7,3.35651721]
[1755932151469,65.00841591,206.71,206.7,3.35651721]
[1755932152172,65.00841591,206.71,206.7,0.03]
[1755932153146,64.42841591,206.71,206.7,0.03]
[1755932155177,66.36532191,206.71,206.7,0.03]
[1755932155368,64.42841591,206.71,206.7,0.03]
[1755932160475,65.00841591,206.71,206.7,0.03]
[1755932160673,66.94532091,206.71,206.7,0.03]
[1755932161979,44.31404594,206.68,206.67,0.03]
[1755932162167,89.10981476,206.68,206.67,0.03]
[1755932163257,91.04690676,206.68,206.67,0.03]
[1755932167786,91.04690676,206.68,206.67,0.74]
[1755932167787,20.25113794,206.68,206.67,0.74]
[1755932167960,24.62981476,206.68,206.67,0.74]
[1755932168167,24.62981476,206.68,206.67,0.03]
[1755932168168,63.10981476,206.68,206.67,0.03]
[1755932169075,63.10981476,206.68,206.67,3.16872966]
[1755932169390,63.10981476,206.68,206.67,0.03]
[1755932171692,65.04681376,206.68,206.67,0.03]
[1755932173294,65.04681376,206.68,206.67,0.74]
[1755932173891,65.04681376,206.68,206.67,0.03]
[1755932175086,65.04681376,206.68,206.67,0.74]
[1755932175294,65.04681376,206.68,206.67,0.03]
[1755932178273,65.04681376,206.68,206.67,0.74]
[1755932178669,65.04681376,206.68,206.67,0.03]
[1755932181887,58.73104494,206.68,206.67,0.03]
[1755932182171,65.04681376,206.68,206.67,0.74]
[1755932184097,65.04681376,206.68,206.67,3.94185355]
[1755932184511,58.73104494,206.68,206.67,3.94185355]
[1755932184670,65.04681376,206.68,206.67,3.94185355]
[1755932185678,20.25104494,206.68,206.67,3.94185355]
[1755932185872,63.06981476,206.68,206.67,3.94185355]
[1755932191875,63.06981476,206.68,206.67,3.94330539]
[1755932192478,62.78549162,206.68,206.67,3.94330539]
[1755932192675,0.1,206.83,206.7,26.0]
[1755932192884,10.07821239,206.82,206.77,26.0]
[1755932193080,35.03404248,206.99,206.78,3.87330539]
[1755932193278,35.03404248,206.99,206.74,6.31576882]
[1755932193279,6.31576882,206.83,206.79,29.87330539]
[1755932193585,38.42,206.82,206.8,3.87330539]
[1755932193784,38.42,206.82,206.79,40.513437]
[1755932193785,38.42,206.82,206.81,3.87330539]
[1755932194292,35.99862316,206.82,206.81,4.28511241]
[1755932201184,35.99862316,206.82,206.81,4.25864554]
[1755932201809,35.99862316,206.82,206.81,4.25699793]
[1755932202808,36.05862316,206.82,206.81,4.25699793]
[1755932203016,36.05862316,206.82,206.81,14.11015279]
[1755932205978,0.06,206.82,206.81,14.11015279]
[1755932206196,0.28432314,206.85,206.84,26.0]
[1755932206500,52.25991715,206.85,206.84,29.58699793]
[1755932206702,52.25991715,206.85,206.84,30.25699793]
[1755932207205,52.25991715,206.85,206.84,30.24915231]
[1755932207404,52.25991715,206.85,206.84,4.24915231]
[1755932207602,52.25991715,206.85,206.84,30.24915231]
[1755932207995,52.25991715,206.85,206.84,29.57915231]
[1755932210209,0.28432314,206.83,206.78,0.67]
[1755932210414,13.59559401,206.81,206.79,3.57728827]
[1755932210594,38.36,206.8,206.79,26.0]
[1755932210912,38.36,206.8,206.79,29.57747286]
[1755932211803,38.36,206.8,206.79,30.24747286]
[1755932212922,61.80874887,206.8,206.79,3.57747286]
[1755932216327,51.95559401,206.8,206.79,3.57747286]
[1755932216826,51.95559401,206.8,206.79,4.24747286]
[1755932217024,51.95559401,206.8,206.79,3.57975084]
[1755932217820,61.80874887,206.8,206.79,3.57975084]
[1755932218532,38.36,206.8,206.79,14.1229057]
[1755932219399,38.36,206.8,206.79,10.54315486]
[1755932219603,38.36,206.8,206.79,14.12380696]
[1755932220119,38.36,206.8,206.79,4.2706521]
[1755932220406,38.36,206.8,206.79,4.27100235]
[1755932221398,38.36,206.8,206.79,14.12415721]
[1755932221603,38.36,206.8,206.79,10.54315486]
[1755932221827,38.36,206.8,206.79,14.12495191]
[1755932224637,38.36,206.8,206.79,40.12495191]
[1755932225211,5.64202102,206.86,206.81,26.0]
[1755932225430,38.34,206.85,206.84,9.85315486]
[1755932225733,38.34,206.85,206.84,40.12495191]
[1755932226032,38.34,206.85,206.84,54.63417691]
[1755932226610,38.34,206.85,206.84,28.63417691]
[1755932226812,0.06,206.87,206.86,26.0]
[1755932227028,38.4,206.87,206.86,13.43495191]
[1755932227336,38.4,206.87,206.86,14.12495191]
[1755932227712,38.4,206.87,206.86,14.12935848]
[1755932228639,38.4,206.87,206.86,14.13053859]
[1755932230806,38.4,206.87,206.86,40.13053859]
[1755932231008,38.4,206.87,206.86,14.13053859]
[1755932231209,38.4,206.87,206.86,40.13053859]
[1755932231434,38.4,206.87,206.86,14.13053859]
[1755932235248,34.76902765,206.87,206.86,14.13053859]
[1755932235662,0.06,206.88,206.86,14.13053859]
[1755932235834,0.06,206.88,206.87,4.27738373]
[1755932236152,0.06,206.88,206.87,14.13053859]
[1755932236919,0.06,206.88,206.87,14.02870465]
[1755932237637,0.06,206.88,206.87,4.17554979]
[1755932237949,0.06,206.88,206.87,14.02870465]
[1755932239970,23.50874887,206.88,206.87,3.48883599]
[1755932240120,48.18622687,206.88,206.87,3.48883599]
[1755932240320,13.59559401,206.79,206.76,0.03]
[1755932240630,38.3,206.78,206.76,0.03]
[1755932241043,38.3,206.78,206.76,26.03]
[1755932241550,38.3,206.78,206.76,0.03]
[1755932241856,38.3,206.78,206.77,10.54315486]
[1755932242074,38.3,206.78,206.77,9.85315486]
[1755932242239,38.3,206.81,206.8,26.0]
[1755932242440,38.3,206.81,206.8,26.69]
[1755932244843,38.3,206.81,206.8,26.0]
[1755932245661,13.59559401,206.8,206.76,0.03]
[1755932245833,9.85315486,206.77,206.76,0.03]
[1755932246028,61.74874887,206.77,206.76,0.03]
[1755932246855,62.03307201,206.77,206.76,0.03]
[1755932249963,13.59559401,206.77,206.76,0.03]
[1755932250139,61.76874887,206.77,206.76,0.03]
[1755932252159,23.44874887,206.77,206.76,0.03]
[1755932252465,61.76874887,206.77,206.76,0.03]
[1755932253768,23.44874887,206.77,206.76,0.03]
[1755932253938,61.76874887,206.77,206.76,0.03]
[1755932256439,62.05307201,206.77,206.76,0.03]
[1755932258746,51.91559401,206.77,206.76,0.03]
[1755932258948,61.76874887,206.77,206.76,0.75]
[1755932259462,61.76874887,206.77,206.76,0.03]
[1755932264884,61.76874887,206.77,206.76,0.75]
[1755932265980,61.76874887,206.77,206.76,0.03]
[1755932268678,62.05307201,206.77,206.76,0.03]
[1755932269179,13.87991715,206.77,206.76,0.03]
[1755932269377,62.05307201,206.77,206.76,0.03]
[1755932272783,1.935874,206.83,206.76,0.75]
[1755932272970,13.59559401,206.83,206.76,0.75]
[1755932273168,13.59559401,206.8,206.78,26.0]
[1755932273366,38.32,206.79,206.78,26.0]
[1755932274089,38.32,206.79,206.78,26.72]
[1755932274288,38.32,206.79,206.78,0.72]
[1755932274873,38.32,206.79,206.76,0.03]
[1755932275075,48.17315486,206.79,206.76,0.75]
[1755932275793,23.44874887,206.77,206.76,0.03]
[1755932275988,61.74874887,206.77,206.76,0.03]
[1755932276784,51.89559401,206.77,206.76,0.75]
[1755932277388,51.89559401,206.77,206.75,16.78]
[1755932279488,13.59559401,206.76,206.74,0.03]
[1755932279676,38.3,206.75,206.74,26.03]
[1755932279880,38.3,206.75,206.74,26.74]
[1755932281281,38.3,206.75,206.74,0.03]
[1755932281282,62.43874887,206.75,206.74,0.03]
[1755932281481,62.72307201,206.75,206.74,0.03]
[1755932282702,13.59559401,206.75,206.74,0.03]
[1755932282895,51.89559401,206.75,206.74,0.74]
[1755932283199,13.59559401,206.75,206.74,0.74]
[1755932283400,51.89559401,206.75,206.74,0.74]
[1755932283884,38.3,206.75,206.74,26.74]
[1755932285682,5.5602741,206.84,206.74,36.59315486]
[1755932285877,9.85315486,206.81,206.75,0.71]
[1755932286177,38.3,206.8,206.77,26.0]
[1755932286494,38.3,206.8,206.77,26.71]
[1755932287487,38.3,206.8,206.77,0.71]
[1755932288587,38.3,206.8,206.75,35.85315486]
[1755932288588,13.59559401,206.79,206.75,26.0]
[1755932288789,38.3,206.78,206.76,26.71]
[1755932289395,38.3,206.78,206.76,26.0]
[1755932289598,38.3,206.78,206.75,26.0]
[1755932289778,38.3,206.78,206.75,26.71]
[1755932291380,38.3,206.78,206.75,0.71]
[1755932291595,38.3,206.78,206.75,26.71]
[1755932292780,38.3,206.78,206.76,26.0]
[1755932297722,51.89559401,206.78,206.77,3.16360119]
[1755932298599,51.89559401,206.78,206.77,29.16360119]
[1755932299621,51.89559401,206.78,206.77,3.16360119]
[1755932299791,51.89559401,206.78,206.77,29.16360119]
[1755932300196,51.89559401,206.78,206.77,26.71]
[1755932300507,51.89559401,206.78,206.77,29.87105635]
[1755932300887,38.28,206.78,206.77,13.72421121]
[1755932301307,38.34,206.78,206.77,13.72421121]
[1755932301692,38.34,206.78,206.77,3.87105635]
[1755932301898,38.34,206.78,206.77,13.72421121]
[1755932308015,38.34,206.78,206.77,39.72421121]
[1755932308318,0.06,206.78,206.77,39.72421121]
[1755932308491,38.34,206.78,206.77,39.72421121]
[1755932309316,38.34,206.78,206.77,39.71798927]
[1755932314326,38.34,206.78,206.77,36.17111688]
[1755932314624,38.34,206.78,206.77,36.16795437]
[1755932315607,38.34,206.78,206.77,36.16804035]
[1755932316421,38.34,206.78,206.77,10.16804035]
[1755932317614,0.06,206.78,206.77,10.16804035]
[1755932318606,0.06,206.78,206.77,10.29903347]
[1755932319430,0.06,206.78,206.77,10.29934557]
[1755932323322,0.06,206.78,206.77,10.28934557]
[1755932327918,0.06,206.78,206.77,7.00628247]
[1755932328110,0.06,206.78,206.77,4.16172126]
[1755932328428,0.06,206.78,206.77,10.46800373]
[1755932332019,0.06,206.78,206.77,4.16172126]
[1755932332325,0.06,206.78,206.77,10.46800373]
[1755932337130,0.06,206.78,206.77,7.00628247]
[1755932337327,0.06,206.78,206.77,10.47160581]
[1755932337328,0.00242484,206.78,206.77,10.47160581]
[1755932338725,0.00242484,206.78,206.77,3.46532334]
[1755932345329,0.00242484,206.78,206.76,26.0]
[1755932345529,0.00242484,206.78,206.77,3.47900475]
[1755932351842,0.00242484,206.78,206.77,3.50900475]
[1755932352044,0.00242484,206.78,206.77,4.22900475]
[1755932353827,0.00242484,206.78,206.77,3.50900475]
[1755932354038,20.90862446,206.78,206.77,3.50900475]
[1755932354238,35.42697846,206.78,206.77,3.50900475]
[1755932354638,35.42697846,206.78,206.77,3.30212767]
[1755932355359,35.42697846,206.78,206.77,3.14734128]
[1755932357858,35.42697846,206.78,206.77,3.1439741]
[1755932360763,35.42697846,206.78,206.77,3.14263075]
[1755932360954,29.12069599,206.78,206.77,3.14263075]
[1755932361144,35.42697846,206.78,206.77,3.14263075]
[1755932362875,35.42697846,206.78,206.77,0.03]
[1755932363264,35.42697846,206.78,206.72,26.0]
[1755932363571,20.18619962,206.76,206.73,3.11081983]
[1755932363790,38.16,206.75,206.71,26.0]
[1755932363948,38.88,206.75,206.72,3.11108666]
[1755932364144,38.16,206.75,206.73,3.11108666]
[1755932364453,52.75991715,206.75,206.74,3.11108666]
[1755932364753,59.06619962,206.75,206.74,3.11108666]
[1755932365576,13.87991715,206.74,206.68,26.72]
[1755932365773,44.46628247,206.73,206.69,3.1103881]
[1755932365955,13.59559401,206.71,206.7,3.1103881]
[1755932366275,51.75559401,206.71,206.7,3.1103881]
[1755932369457,52.43559401,206.71,206.7,3.1103881]
[1755932369981,66.95816401,206.71,206.7,3.1103881]
[1755932370361,66.95816401,206.71,206.65,0.03]
[1755932370362,0.28432314,206.7,206.65,0.03]
[1755932370563,15.20257,206.71,206.69,6.30628247]
[1755932370564,14.52257,206.71,206.69,6.30628247]
[1755932370761,38.16,206.7,206.67,6.30628247]
[1755932370962,20.58187648,206.76,206.67,6.30628247]
[1755932370963,38.16,206.69,206.67,6.30628247]
[1755932371160,38.16,206.69,206.68,6.306282]
[1755932371361,38.16,206.69,206.68,7.016282]
[1755932371684,15.53146901,206.76,206.71,26.0]
[1755932371900,38.16,206.75,206.72,7.01628247]
[1755932372176,38.16,206.75,206.73,26.71]
[1755932372366,38.16,206.75,206.74,3.6142237]
[1755932372558,38.16,206.75,206.74,4.3242237]
[1755932373063,38.16,206.75,206.74,4.32430765]
[1755932373462,38.16,206.75,206.74,18.84195865]
[1755932373661,38.16,206.75,206.74,18.84216852]
[1755932375071,38.16,206.75,206.74,18.84240071]
[1755932376571,38.16,206.75,206.74,18.13240071]
[1755932377987,38.16,206.75,206.74,18.84240071]
[1755932379190,38.16,206.75,206.74,18.84056541]
[1755932380684,51.75559401,206.75,206.74,18.13056541]
[1755932381991,51.75559401,206.75,206.74,18.84056541]
[1755932382287,51.75559401,206.75,206.74,15.227651]
[1755932382482,51.75559401,206.75,206.74,18.84479029]
[1755932382993,51.75559401,206.75,206.74,18.84525049]
[1755932386173,51.75559401,206.75,206.74,18.13525049]
[1755932386377,51.81559401,206.75,206.74,18.13525049]
[1755932386789,52.49559401,206.75,206.74,18.13525049]
[1755932387002,52.49559401,206.75,206.74,3.61759949]
[1755932387201,58.80187648,206.75,206.74,3.61759949]
[1755932387996,59.08619962,206.75,206.74,3.61759949]
[1755932388289,67.30178415,206.75,206.74,3.61759949]
[1755932388503,73.60806662,206.75,206.74,3.61759949]
[1755932389501,28.17746101,206.75,206.74,3.61759949]
[1755932389801,51.79559401,206.75,206.74,3.61759949]
[1755932390273,52.47559401,206.75,206.74,3.61759949]
[1755932391692,52.47559401,206.75,206.74,3.34054218]
[1755932391999,52.47559401,206.75,206.71,0.71]
[1755932392203,52.47559401,206.75,206.72,3.34054044]
[1755932392379,52.47559401,206.75,206.73,3.34054044]
[1755932392579,20.64187648,206.75,206.74,3.34054044]
[1755932392802,58.78187648,206.75,206.74,3.34054044]
[1755932392991,58.10187648,206.75,206.74,3.34054044]
[1755932393681,51.79559401,206.75,206.74,3.34054044]
[1755932394191,13.59559401,206.74,206.72,0.71]
[1755932394499,13.59559401,206.74,206.73,3.34191512]
[1755932394801,51.73559401,206.74,206.73,3.34191512]
[1755932395774,13.59559401,206.74,206.73,4.05191512]
[1755932395979,51.73559401,206.74,206.73,4.05191512]
[1755932396504,51.73559401,206.74,206.73,3.34191512]
[1755932400210,52.39559401,206.74,206.73,3.34191512]
[1755932400407,58.70187648,206.74,206.73,3.34191512]
[1755932400709,52.39559401,206.74,206.73,3.34525011]
[1755932401299,52.39559401,206.74,206.73,3.34540882]
[1755932402792,13.59559401,206.74,206.73,3.99528625]
[1755932402995,51.71559401,206.74,206.73,3.99528625]
[1755932403501,38.12,206.74,206.73,10.30156872]
[1755932403813,0.06,206.75,206.74,26.0]
[1755932403988,51.77559401,206.75,206.74,29.34528625]
[1755932404185,51.77559401,206.75,206.74,3.99528625]
[1755932404417,51.77559401,206.75,206.74,44.51293725]
[1755932407491,13.65559401,206.75,206.74,44.51293725]
[1755932407822,51.77559401,206.75,206.74,44.51293725]
[1755932408611,51.77559401,206.75,206.74,41.167651]
[1755932408815,51.77559401,206.75,206.74,44.5115119]
[1755932411416,51.77559401,206.75,206.74,43.8615119]
[1755932411602,51.77559401,206.75,206.74,29.3438609]
[1755932412502,51.77559401,206.75,206.74,3.3438609]
[1755932412821,52.71991715,206.75,206.74,3.3438609]
[1755932413122,59.02619962,206.75,206.74,3.3438609]
[1755932414233,45.43060561,206.75,206.74,3.3438609]
[1755932414997,59.02619962,206.75,206.74,3.3438609]
[1755932416325,52.71991715,206.75,206.74,3.3438609]
[1755932416529,59.02619962,206.75,206.74,3.3438609]
[1755932417758,45.43060561,206.75,206.74,3.3438609]
[1755932417940,13.87991715,206.74,206.67,0.03]
[1755932418099,6.30628247,206.71,206.68,3.25317035]
[1755932418305,38.1,206.7,206.69,3.25317035]
[1755932418719,13.59559401,206.69,206.67,0.68]
[1755932418923,51.69559401,206.68,206.67,0.68]
[1755932419233,51.69559401,206.68,206.67,3.9323947]
[1755932420200,13.59559401,206.68,206.67,3.9323947]
[1755932420515,51.69559401,206.68,206.67,3.9323947]
[1755932421638,0.06,206.75,206.69,26.0]
[1755932421831,13.87991715,206.73,206.7,3.2523947]
[1755932422151,51.69559401,206.72,206.71,3.2523947]
[1755932424738,52.35559401,206.72,206.71,3.2523947]
[1755932426324,14.25559401,206.72,206.71,3.2523947]
[1755932426530,5.08201618,206.73,206.71,36.20867717]
[1755932426741,5.08201618,206.73,206.72,3.9023947]
[1755932426907,5.08201618,206.73,206.72,0.65]
[1755932426908,56.77761019,206.73,206.72,0.65]
[1755932427108,56.77761019,206.73,206.72,3.93890914]
[1755932428632,56.77761019,206.73,206.72,3.28890914]
[1755932428817,57.44761019,206.73,206.72,3.28890914]
[1755932432041,56.77761019,206.73,206.72,3.28890914]
[1755932433009,56.77761019,206.73,206.7,0.71]
[1755932433347,13.59559401,206.72,206.71,29.99960137]
[1755932433640,13.59559401,206.72,206.71,29.28960137]
[1755932434332,14.26559401,206.72,206.71,29.28960137]
[1755932434515,14.26559401,206.72,206.71,3.28960137]
[1755932435335,14.26559401,206.72,206.71,3.24046733]
[1755932436234,14.26559401,206.72,206.7,26.0]
[1755932436438,13.59559401,206.7,206.68,33.01628247]
[1755932436641,13.59559401,206.7,206.69,3.95018399]
[1755932436844,51.67559401,206.7,206.69,3.95012712]
[1755932440265,13.59559401,206.7,206.69,3.24012712]
[1755932440447,52.34559401,206.7,206.69,3.24012712]
[1755932441161,58.93619962,206.7,206.69,3.24012712]
[1755932442620,58.93619962,206.7,206.62,0.03]
[1755932442621,39.59559401,206.63,206.62,0.03]
[1755932442823,0.28432314,206.56,206.46,3.240127]
[1755932443053,20.18619962,206.54,206.42,3.23924106]
[1755932443427,14.54991715,206.54,206.44,26.0]
[1755932443631,58.93619962,206.54,206.48,0.71]
[1755932443858,20.85619962,206.54,206.48,0.71]
[1755932444034,58.95619962,206.54,206.48,0.71]
[1755932444241,20.85619962,206.54,206.48,0.71]
[1755932444444,58.97619962,206.54,206.48,0.71]
[1755932444648,58.97619962,206.54,206.4,6.30628247]
[1755932444958,58.97619962,206.54,206.37,17.06939016]
[1755932444959,0.28432314,206.53,206.42,0.71]
[1755932445159,19.90187648,206.45,206.43,3.15436415]
[1755932445340,13.59559401,206.43,206.38,0.71]
[1755932445660,23.49030684,206.4,206.39,3.15549413]
[1755932445961,61.63030684,206.4,206.36,26.71]
[1755932446260,61.63030684,206.4,206.37,3.85944401]
[1755932446472,61.63030684,206.4,206.37,0.71]
[1755932446835,51.73559401,206.4,206.37,0.71]
[1755932447777,61.63030684,206.4,206.37,0.71]
[1755932449241,62.30030684,206.4,206.34,36.60471283]
[1755932449447,9.89471283,206.39,206.34,0.71]
[1755932449639,51.71559401,206.38,206.34,0.71]
[1755932449834,52.38559401,206.38,206.35,26.0]
[1755932450036,13.59559401,206.38,206.35,26.0]
[1755932450236,38.14,206.37,206.36,0.71]
[1755932450446,38.16,206.37,206.36,0.71]
[1755932450647,38.16,206.37,206.36,10.60471283]
[1755932452033,38.16,206.37,206.36,3.83285429]
[1755932452232,38.16,206.37,206.36,39.72756712]
[1755932452767,38.16,206.37,206.36,10.60471283]
[1755932453732,38.16,206.37,206.36,36.60471283]
[1755932453934,38.16,206.37,206.36,10.60471283]
[1755932454334,38.16,206.37,206.36,36.60471283]
[1755932454534,38.16,206.37,206.36,10.60471283]
[1755932454964,38.16,206.37,206.36,0.71]
[1755932455167,38.16,206.37,206.35,9.89471283]
[1755932455458,38.16,206.37,206.36,35.89471283]
[1755932455654,38.16,206.37,206.36,10.60471283]
[1755932456370,38.16,206.37,206.36,0.71]
[1755932456537,38.16,206.37,206.36,10.60471283]
[1755932457356,38.16,206.37,206.36,0.71]
[1755932457546,38.16,206.37,206.36,10.60471283]
[1755932458857,38.12,206.39,206.36,10.60471283]
[1755932459035,38.12,206.39,206.32,40.543691]
[1755932459036,38.12,206.39,206.38,9.89471283]
[1755932459366,38.12,206.39,206.38,10.57471283]
[1755932459961,38.12,206.39,206.38,9.57471283]
[1755932463142,38.12,206.39,206.37,26.0]
[1755932463341,38.8,206.39,206.37,35.89471283]
[1755932463770,38.12,206.39,206.37,35.89471283]
[1755932464367,38.12,206.39,206.38,10.57471283]
[1755932464556,38.12,206.43,206.41,26.0]
[1755932464755,0.68,206.5,206.45,26.0]
[1755932464949,0.68,206.5,206.49,35.89471283]
[1755932464950,51.71559401,206.5,206.49,35.89471283]
[1755932465150,38.12,206.5,206.49,35.89471283]
[1755932465368,51.71559401,206.5,206.49,35.89471283]
[1755932466678,52.39559401,206.5,206.49,26.0]
[1755932468074,51.71559401,206.5,206.49,35.89471283]
[1755932468575,0.68,206.68,206.57,26.0]
[1755932468779,0.68,206.64,206.63,26.0]
[1755932468949,38.92,206.64,206.63,26.0]
[1755932470463,52.51559401,206.64,206.63,26.0]
[1755932472496,13.59559401,206.68,206.63,10.57471283]
[1755932472796,13.59559401,206.66,206.59,28.46895253]
[1755932473072,0.68,206.65,206.62,26.0]
[1755932473252,51.85559401,206.64,206.62,26.0]
[1755932473981,51.85559401,206.64,206.59,3.14895253]
[1755932473982,51.85559401,206.64,206.63,9.89471283]
[1755932474186,52.53559401,206.64,206.63,9.89471283]
[1755932475083,38.94,206.64,206.63,9.89471283]
[1755932477075,38.26,206.64,206.63,9.89471283]
[1755932478178,13.59559401,206.67,206.63,10.57471283]
[1755932478494,13.59559401,206.67,206.66,9.89471283]
[1755932478868,51.79559401,206.67,206.66,9.89471283]
[1755932479072,52.47559401,206.67,206.66,9.89471283]
[1755932479480,13.59559401,206.66,206.64,9.89471283]
[1755932479668,14.27559401,206.65,206.64,9.89471283]
[1755932480596,14.27559401,206.65,206.63,9.89471283]
[1755932480886,38.88,206.64,206.63,9.89471283]
[1755932482695,13.59559401,206.63,206.58,0.68]
[1755932482900,13.59559401,206.63,206.61,9.89471283]
[1755932482901,14.27559401,206.63,206.61,9.89471283]
[1755932483112,13.59559401,206.63,206.61,9.89471283]
[1755932483402,0.68,206.62,206.61,9.89471283]
[1755932484698,0.68,206.62,206.6,9.92471283]
[1755932484905,38.16,206.61,206.6,9.92471283]
[1755932485073,38.84,206.61,206.6,9.92471283]
[1755932485270,38.16,206.61,206.6,9.92471283]
[1755932488185,38.12,206.64,206.63,26.0]
[1755932488371,38.12,206.64,206.63,9.89471283]
[1755932489581,38.12,206.64,206.6,0.72]
[1755932489582,51.71559401,206.64,206.6,0.03]
[1755932489788,14.29559401,206.63,206.6,0.03]
[1755932489996,14.29559401,206.63,206.62,26.0]
[1755932493515,38.12,206.64,206.62,9.89471283]
[1755932493882,38.12,206.64,206.61,35.89471283]
[1755932494191,14.29559401,206.63,206.6,0.03]
[1755932494699,0.7,206.62,206.6,0.03]
[1755932495003,38.1,206.61,206.6,0.03]
[1755932496309,52.39559401,206.61,206.6,0.03]
[1755932496602,62.57462998,206.61,206.6,0.03]
[1755932496802,52.67991715,206.61,206.6,0.03]
[1755932497409,52.39559401,206.61,206.6,0.03]
[1755932501611,38.1,206.61,206.6,26.03]
[1755932502090,38.1,206.61,206.6,0.03]
[1755932502416,38.1,206.61,206.6,29.13324406]
[1755932503890,38.1,206.61,206.6,3.13324406]
[1755932504096,0.06,206.64,206.63,26.0]
[1755932504292,38.16,206.64,206.63,3.10324406]
[1755932505085,52.45559401,206.64,206.63,3.10324406]
[1755932505326,13.59559401,206.63,206.6,0.03]
[1755932505621,38.12,206.62,206.61,3.79760726]
[1755932505790,0.06,206.64,206.63,26.0]
[1755932505988,51.79559401,206.64,206.63,29.10760726]
[1755932506407,13.65559401,206.64,206.63,29.10760726]
[1755932506585,51.79559401,206.64,206.63,29.10760726]
[1755932507392,38.2,206.64,206.63,13.00232009]
[1755932508313,51.79559401,206.64,206.63,29.10760726]
[1755932508527,52.49559401,206.64,206.63,29.11712636]
[1755932510989,51.79559401,206.64,206.63,29.11712636]
[1755932511197,38.2,206.64,206.63,39.01183919]
[1755932512249,0.06,206.64,206.63,13.70183919]
[1755932512408,17.71404134,206.65,206.63,13.70183919]